[Event "Titled Tuesday Blitz November 29 Early 2022"]
[White "Oparin, Grigoriy"]
[Black "Pakleza, Zbigniew"]
[WhiteFideId "24125890"]
[BlackFideId "1119290"]
[WhiteElo "2639"]
[BlackElo "2411"]
[Result "1-0"]
[Round "11"]
[TimeControl "180+1"]
[Date "2022.11.29"]
[WhiteClock "0:00:27"]
[BlackClock "0:00:04"]

1. e4 {[%clk 0:02:58]}  d6 {[%clk 0:03:00]} 2. d4 {[%clk 0:02:58]}  Nf6 {[%clk 0:03:01]} 3. Bd3 {[%clk 0:02:58]}  e5 {[%clk 0:03:01]} 4. c3 {[%clk 0:02:57]}  d5 {[%clk 0:03:01]} 5. exd5 {[%clk 0:02:56]}  exd4 {[%clk 0:03:00]} 6. cxd4 {[%clk 0:02:52]}  Bb4+ {[%clk 0:02:59]} 7. Nc3 {[%clk 0:02:52]}  O-O {[%clk 0:02:59]} 8. Ne2 {[%clk 0:02:50]}  Nxd5 {[%clk 0:02:48]} 9. O-O {[%clk 0:02:50]}  h6 {[%clk 0:02:39]} 10. Qb3 {[%clk 0:02:49]}  Nxc3 {[%clk 0:02:39]} 11. bxc3 {[%clk 0:02:48]}  Bd6 {[%clk 0:02:40]} 12. Ng3 {[%clk 0:02:48]}  Nc6 {[%clk 0:02:15]} 13. Ne4 {[%clk 0:02:44]}  Be6 {[%clk 0:02:00]} 14. Qxb7 {[%clk 0:02:34]}  Bd5 {[%clk 0:01:59]} 15. Nxd6 {[%clk 0:02:25]}  Qxd6 {[%clk 0:02:00]} 16. Qb1 {[%clk 0:02:24]}  Na5 {[%clk 0:01:44]} 17. Re1 {[%clk 0:02:22]}  Qc6 {[%clk 0:01:32]} 18. Re5 {[%clk 0:01:40]}  Nc4 {[%clk 0:01:23]} 19. Bxc4 {[%clk 0:01:40]}  Qxc4 {[%clk 0:01:24]} 20. Qb4 {[%clk 0:01:27]}  Rfe8 {[%clk 0:01:12]} 21. Qxc4 {[%clk 0:01:25]}  Bxc4 {[%clk 0:01:13]} 22. Ba3 {[%clk 0:01:23]}  Rxe5 {[%clk 0:01:02]} 23. dxe5 {[%clk 0:01:23]}  Rd8 {[%clk 0:01:03]} 24. Bc5 {[%clk 0:01:23]}  a6 {[%clk 0:00:52]} 25. Bd4 {[%clk 0:01:18]}  Rd5 {[%clk 0:00:49]} 26. a3 {[%clk 0:01:00]}  c5 {[%clk 0:00:42]} 27. Be3 {[%clk 0:01:01]}  Rxe5 {[%clk 0:00:43]} 28. Rb1 {[%clk 0:01:01]}  Bb5 {[%clk 0:00:43]} 29. Rd1 {[%clk 0:01:01]}  c4 {[%clk 0:00:39]} 30. Rd6 {[%clk 0:00:56]}  Re6 {[%clk 0:00:35]} 31. Rd5 {[%clk 0:00:56]}  g5 {[%clk 0:00:27]} 32. h4 {[%clk 0:00:53]}  f6 {[%clk 0:00:27]} 33. Rc5 {[%clk 0:00:50]}  Kf7 {[%clk 0:00:23]} 34. h5 {[%clk 0:00:50]}  Rd6 {[%clk 0:00:17]} 35. Bd4 {[%clk 0:00:50]}  Ke6 {[%clk 0:00:17]} 36. f3 {[%clk 0:00:50]}  Rc6 {[%clk 0:00:11]} 37. Rxc6+ {[%clk 0:00:48]}  Bxc6 {[%clk 0:00:11]} 38. Kf2 {[%clk 0:00:48]}  Kf7 {[%clk 0:00:09]} 39. Ke3 {[%clk 0:00:47]}  f5 {[%clk 0:00:09]} 40. Be5 {[%clk 0:00:46]}  f4+ {[%clk 0:00:06]} 41. Kd4 {[%clk 0:00:47]}  Bb5 {[%clk 0:00:07]} 42. Kc5 {[%clk 0:00:46]}  Ke6 {[%clk 0:00:03]} 43. Bg7 {[%clk 0:00:46]}  Kf5 {[%clk 0:00:03]} 44. Bxh6 {[%clk 0:00:46]}  Be8 {[%clk 0:00:04]} 45. Kxc4 {[%clk 0:00:45]}  Bxh5 {[%clk 0:00:05]} 46. Kd5 {[%clk 0:00:43]}  g4 {[%clk 0:00:03]} 47. fxg4+ {[%clk 0:00:43]}  Bxg4 {[%clk 0:00:04]} 48. c4 {[%clk 0:00:39]}  f3 {[%clk 0:00:05]} 49. gxf3 {[%clk 0:00:38]}  Bxf3+ {[%clk 0:00:06]} 50. Kd6 {[%clk 0:00:39]}  Ke4 {[%clk 0:00:01]} 51. c5 {[%clk 0:00:39]}  Kd4 {[%clk 0:00:02]} 52. c6 {[%clk 0:00:39]}  Kc4 {[%clk 0:00:02]} 53. c7 {[%clk 0:00:31]}  Bg4 {[%clk 0:00:03]} 54. Kc6 {[%clk 0:00:29]}  Bc8 {[%clk 0:00:03]} 55. Bf8 {[%clk 0:00:28]}  a5 {[%clk 0:00:03]} 56. Kb6 {[%clk 0:00:27]}  a4 {[%clk 0:00:03]} 57. Ka7 {[%clk 0:00:27]}  Kb5 {[%clk 0:00:04]} 58. Kb8 {[%clk 0:00:28]}  Bf5 {[%clk 0:00:03]} 59. Kb7 {[%clk 0:00:28]}  Be4+ {[%clk 0:00:01]} 60. Kb8 {[%clk 0:00:28]}  Bf5 {[%clk 0:00:02]} 61. c8=Q {[%clk 0:00:28]}  Bxc8 {[%clk 0:00:02]} 62. Kxc8 {[%clk 0:00:29]}  Ka6 {[%clk 0:00:03]} 63. Kb8 {[%clk 0:00:30]}  Kb6 {[%clk 0:00:03]} 64. Bg7 {[%clk 0:00:29]}  Ka6 {[%clk 0:00:02]} 65. Bd4 {[%clk 0:00:30]}  Kb5 {[%clk 0:00:02]} 66. Kb7 {[%clk 0:00:30]}  Ka5 {[%clk 0:00:03]} 67. Bc3+ {[%clk 0:00:27]}  Kb5 {[%clk 0:00:04]} 68. Be1 {[%clk 0:00:27]} 1-0


[Site "https://www.chess.com"]

[Event "Titled Tuesday Blitz November 29 Early 2022"]
[White "Petrova, Irina"]
[Black "Malka, Samuel"]
[WhiteFideId "14124122"]
[BlackFideId "20643675"]
[WhiteElo "2023"]
[BlackElo "2459"]
[Result "1-0"]
[Round "11"]
[TimeControl "180+1"]
[Date "2022.11.30"]
[WhiteClock "0:00:08"]
[BlackClock "0:00:02"]

1. e4 {[%clk 0:02:55]}  e5 {[%clk 0:02:59]} 2. Nf3 {[%clk 0:02:54]}  Nc6 {[%clk 0:02:59]} 3. Bb5 {[%clk 0:02:53]}  a6 {[%clk 0:02:59]} 4. Ba4 {[%clk 0:02:49]}  Nf6 {[%clk 0:02:58]} 5. d3 {[%clk 0:02:48]}  d6 {[%clk 0:02:55]} 6. c4 {[%clk 0:02:46]}  Be7 {[%clk 0:02:45]} 7. Nc3 {[%clk 0:02:46]}  O-O {[%clk 0:02:45]} 8. Bg5 {[%clk 0:02:43]}  Nd7 {[%clk 0:02:40]} 9. Bxe7 {[%clk 0:02:43]}  Nxe7 {[%clk 0:02:41]} 10. Nd5 {[%clk 0:02:42]}  c6 {[%clk 0:02:36]} 11. Nxe7+ {[%clk 0:02:41]}  Qxe7 {[%clk 0:02:37]} 12. O-O {[%clk 0:02:38]}  Nc5 {[%clk 0:02:33]} 13. Bc2 {[%clk 0:02:37]}  Bg4 {[%clk 0:02:34]} 14. d4 {[%clk 0:02:32]}  Bxf3 {[%clk 0:02:06]} 15. gxf3 {[%clk 0:02:33]}  Ne6 {[%clk 0:02:02]} 16. Kh1 {[%clk 0:02:26]}  Nxd4 {[%clk 0:01:58]} 17. f4 {[%clk 0:02:22]}  Nxc2 {[%clk 0:01:51]} 18. Qxc2 {[%clk 0:02:23]}  exf4 {[%clk 0:01:51]} 19. f3 {[%clk 0:02:16]}  Rad8 {[%clk 0:01:50]} 20. Rg1 {[%clk 0:02:13]}  Qe5 {[%clk 0:01:50]} 21. Rg2 {[%clk 0:02:12]}  g6 {[%clk 0:01:45]} 22. Rd1 {[%clk 0:02:09]}  f5 {[%clk 0:01:33]} 23. exf5 {[%clk 0:02:07]}  Qxf5 {[%clk 0:01:33]} 24. Qc3 {[%clk 0:01:53]}  Qe5 {[%clk 0:01:29]} 25. Qb3 {[%clk 0:01:50]}  Rf7 {[%clk 0:01:23]} 26. Rdg1 {[%clk 0:01:48]}  Qe3 {[%clk 0:01:15]} 27. Qd1 {[%clk 0:01:34]}  Re7 {[%clk 0:01:00]} 28. h3 {[%clk 0:01:28]}  Re5 {[%clk 0:00:59]} 29. Kh2 {[%clk 0:01:27]}  d5 {[%clk 0:00:50]} 30. Qc2 {[%clk 0:01:22]}  Rd6 {[%clk 0:00:24]} 31. cxd5 {[%clk 0:01:09]}  Rexd5 {[%clk 0:00:20]} 32. Re2 {[%clk 0:01:08]}  Rd2 {[%clk 0:00:18]} 33. Qc4+ {[%clk 0:01:04]}  R6d5 {[%clk 0:00:15]} 34. Rxd2 {[%clk 0:01:01]}  Qxd2+ {[%clk 0:00:15]} 35. Rg2 {[%clk 0:01:01]}  Qd4 {[%clk 0:00:16]} 36. Qe2 {[%clk 0:00:52]}  Qe3 {[%clk 0:00:16]} 37. Qc4 {[%clk 0:00:44]}  Kg7 {[%clk 0:00:16]} 38. Qb4 {[%clk 0:00:41]}  a5 {[%clk 0:00:14]} 39. Qxb7+ {[%clk 0:00:40]}  Kh6 {[%clk 0:00:13]} 40. Qf7 {[%clk 0:00:28]}  Rd2 {[%clk 0:00:11]} 41. Qf8+ {[%clk 0:00:17]}  Kh5 {[%clk 0:00:11]} 42. Qg7 {[%clk 0:00:12]}  Rxg2+ {[%clk 0:00:09]} 43. Kxg2 {[%clk 0:00:13]}  Qe2+ {[%clk 0:00:10]} 44. Kg1 {[%clk 0:00:13]}  Qe1+ {[%clk 0:00:06]} 45. Kg2 {[%clk 0:00:13]}  Qg3+ {[%clk 0:00:07]} 46. Kf1 {[%clk 0:00:12]}  Qxf3+ {[%clk 0:00:07]} 47. Ke1 {[%clk 0:00:13]}  Qe3+ {[%clk 0:00:08]} 48. Kd1 {[%clk 0:00:13]}  Qd3+ {[%clk 0:00:08]} 49. Kc1 {[%clk 0:00:13]}  Qe3+ {[%clk 0:00:08]} 50. Kd1 {[%clk 0:00:13]}  Kh4 {[%clk 0:00:02]} 51. Qxh7+ {[%clk 0:00:11]}  Kg3 {[%clk 0:00:03]} 52. Qxg6+ {[%clk 0:00:12]}  Kf2 {[%clk 0:00:04]} 53. Qc2+ {[%clk 0:00:10]}  Kg3 {[%clk 0:00:03]} 54. Qg6+ {[%clk 0:00:09]}  Kf2 {[%clk 0:00:03]} 55. Qc2+ {[%clk 0:00:09]}  Kg1 {[%clk 0:00:03]} 56. Qg6+ {[%clk 0:00:08]}  Kh2 {[%clk 0:00:03]} 57. Qc2+ {[%clk 0:00:08]}  Kxh3 {[%clk 0:00:02]} 58. Qxc6 {[%clk 0:00:08]} 1-0


[Site "https://www.chess.com"]

[Event "Titled Tuesday Blitz November 29 Early 2022"]
[White "Przybylski, Wojciech"]
[Black "Figorito, Nick"]
[WhiteFideId "1117599"]
[BlackFideId "30923689"]
[WhiteElo "2221"]
[BlackElo "2370"]
[Result "1-0"]
[Round "11"]
[TimeControl "180+1"]
[Date "2022.11.30"]
[WhiteClock "0:00:39"]
[BlackClock "0:00:20"]

1. e4 {[%clk 0:03:00]}  e6 {[%clk 0:03:00]} 2. d4 {[%clk 0:02:59]}  d5 {[%clk 0:03:01]} 3. Nc3 {[%clk 0:02:59]}  Bb4 {[%clk 0:03:01]} 4. a3 {[%clk 0:02:58]}  Bxc3+ {[%clk 0:03:01]} 5. bxc3 {[%clk 0:02:59]}  dxe4 {[%clk 0:03:01]} 6. Qg4 {[%clk 0:02:59]}  Nf6 {[%clk 0:03:02]} 7. Qxg7 {[%clk 0:02:59]}  Rg8 {[%clk 0:03:03]} 8. Qh6 {[%clk 0:02:59]}  Rg6 {[%clk 0:03:04]} 9. Qe3 {[%clk 0:02:58]}  c5 {[%clk 0:02:59]} 10. dxc5 {[%clk 0:02:54]}  Qa5 {[%clk 0:02:56]} 11. Bd2 {[%clk 0:02:48]}  Na6 {[%clk 0:02:54]} 12. Rb1 {[%clk 0:02:44]}  Qxc5 {[%clk 0:02:45]} 13. Ne2 {[%clk 0:02:21]}  Qxa3 {[%clk 0:02:37]} 14. Nf4 {[%clk 0:02:16]}  Qa2 {[%clk 0:02:33]} 15. Rd1 {[%clk 0:02:13]}  Nd5 {[%clk 0:02:05]} 16. Qd4 {[%clk 0:02:08]}  Rg8 {[%clk 0:01:38]} 17. Bc4 {[%clk 0:02:03]}  Qxc2 {[%clk 0:01:31]} 18. Bb5+ {[%clk 0:01:58]}  Kf8 {[%clk 0:01:25]} 19. Nxd5 {[%clk 0:01:50]}  exd5 {[%clk 0:01:22]} 20. Bh6+ {[%clk 0:01:48]}  Ke7 {[%clk 0:01:21]} 21. Bxa6 {[%clk 0:01:25]}  bxa6 {[%clk 0:01:14]} 22. Qc5+ {[%clk 0:01:20]}  Ke8 {[%clk 0:00:40]} 23. Qc6+ {[%clk 0:01:18]}  Ke7 {[%clk 0:00:40]} 24. Qxa8 {[%clk 0:00:46]}  Qxc3+ {[%clk 0:00:40]} 25. Bd2 {[%clk 0:00:44]}  Qc4 {[%clk 0:00:28]} 26. Qxa7+ {[%clk 0:00:40]}  Ke8 {[%clk 0:00:20]} 27. Rc1 {[%clk 0:00:39]} 1-0


[Site "https://www.chess.com"]

[Event "Titled Tuesday Blitz November 29 Early 2022"]
[White "Riehle, Marco"]
[Black "Buksa, Nataliya"]
[WhiteFideId "12904392"]
[BlackFideId "14123622"]
[WhiteElo "2462"]
[BlackElo "2313"]
[Result "0-1"]
[Round "11"]
[TimeControl "180+1"]
[Date "2022.11.29"]
[WhiteClock "0:00:36"]
[BlackClock "0:00:11"]

1. e4 {[%clk 0:02:59]}  c5 {[%clk 0:02:59]} 2. a3 {[%clk 0:02:55]}  e5 {[%clk 0:02:59]} 3. Nc3 {[%clk 0:02:51]}  Nc6 {[%clk 0:02:58]} 4. Bc4 {[%clk 0:02:52]}  Nf6 {[%clk 0:02:58]} 5. d3 {[%clk 0:02:52]}  Be7 {[%clk 0:02:59]} 6. f4 {[%clk 0:02:51]}  d6 {[%clk 0:02:58]} 7. Nf3 {[%clk 0:02:51]}  exf4 {[%clk 0:02:58]} 8. Bxf4 {[%clk 0:02:50]}  O-O {[%clk 0:02:58]} 9. O-O {[%clk 0:02:51]}  Bg4 {[%clk 0:02:58]} 10. h3 {[%clk 0:02:50]}  Be6 {[%clk 0:02:52]} 11. Nd5 {[%clk 0:02:41]}  Bxd5 {[%clk 0:02:48]} 12. exd5 {[%clk 0:02:39]}  Nd4 {[%clk 0:02:41]} 13. Nxd4 {[%clk 0:02:39]}  cxd4 {[%clk 0:02:42]} 14. Qf3 {[%clk 0:02:38]}  a6 {[%clk 0:02:30]} 15. b4 {[%clk 0:02:35]}  b5 {[%clk 0:02:29]} 16. Bb3 {[%clk 0:02:35]}  h6 {[%clk 0:02:18]} 17. a4 {[%clk 0:02:34]}  Kh7 {[%clk 0:02:16]} 18. Rae1 {[%clk 0:02:29]}  Ra7 {[%clk 0:02:08]} 19. Bc1 {[%clk 0:02:23]}  bxa4 {[%clk 0:02:02]} 20. Bxa4 {[%clk 0:02:24]}  Qb6 {[%clk 0:02:02]} 21. Qf5+ {[%clk 0:02:17]}  Kg8 {[%clk 0:02:00]} 22. Bd2 {[%clk 0:02:12]}  Nh7 {[%clk 0:01:53]} 23. Bd7 {[%clk 0:01:37]}  Bg5 {[%clk 0:01:51]} 24. Re8 {[%clk 0:01:36]}  Nf6 {[%clk 0:01:39]} 25. Rxf8+ {[%clk 0:01:35]}  Kxf8 {[%clk 0:01:39]} 26. Bxg5 {[%clk 0:01:35]}  hxg5 {[%clk 0:01:38]} 27. Bc6 {[%clk 0:01:35]}  Re7 {[%clk 0:01:23]} 28. Qxg5 {[%clk 0:01:33]}  Qxb4 {[%clk 0:01:18]} 29. Qh4 {[%clk 0:01:22]}  Kg8 {[%clk 0:00:59]} 30. Kh2 {[%clk 0:01:21]}  Re5 {[%clk 0:00:54]} 31. Qg3 {[%clk 0:01:13]}  Kf8 {[%clk 0:00:36]} 32. Qh4 {[%clk 0:01:12]}  Kg8 {[%clk 0:00:36]} 33. Qg3 {[%clk 0:01:12]}  Kf8 {[%clk 0:00:36]} 34. Qf4 {[%clk 0:01:08]}  a5 {[%clk 0:00:33]} 35. Ra1 {[%clk 0:01:07]}  Nh5 {[%clk 0:00:24]} 36. Qh4 {[%clk 0:01:05]}  g6 {[%clk 0:00:23]} 37. Ra4 {[%clk 0:01:03]}  Qd2 {[%clk 0:00:20]} 38. Rxd4 {[%clk 0:01:00]}  Kg7 {[%clk 0:00:20]} 39. Rg4 {[%clk 0:00:56]}  Rf5 {[%clk 0:00:17]} 40. Bd7 {[%clk 0:00:54]}  Rxd5 {[%clk 0:00:09]} 41. Qe7 {[%clk 0:00:54]}  Re5 {[%clk 0:00:08]} 42. Qxd6 {[%clk 0:00:53]}  Qe2 {[%clk 0:00:07]} 43. Bc6 {[%clk 0:00:50]}  Rf5 {[%clk 0:00:07]} 44. Qd4+ {[%clk 0:00:48]}  Nf6 {[%clk 0:00:07]} 45. Be4 {[%clk 0:00:46]}  Rf1 {[%clk 0:00:05]} 46. c4 {[%clk 0:00:22]}  Qf2 {[%clk 0:00:05]} 47. Qxf2 {[%clk 0:00:21]}  Nxg4+ {[%clk 0:00:05]} 48. hxg4 {[%clk 0:00:20]}  Rxf2 {[%clk 0:00:05]} 49. Kg3 {[%clk 0:00:19]}  Rc2 {[%clk 0:00:04]} 50. Bd5 {[%clk 0:00:19]}  a4 {[%clk 0:00:04]} 51. d4 {[%clk 0:00:19]}  a3 {[%clk 0:00:04]} 52. c5 {[%clk 0:00:20]}  a2 {[%clk 0:00:05]} 53. Bxa2 {[%clk 0:00:21]}  Rxa2 {[%clk 0:00:06]} 54. Kf4 {[%clk 0:00:21]}  Kf6 {[%clk 0:00:06]} 55. Ke4 {[%clk 0:00:22]}  Ke6 {[%clk 0:00:06]} 56. d5+ {[%clk 0:00:23]}  Ke7 {[%clk 0:00:07]} 57. Ke5 {[%clk 0:00:23]}  Re2+ {[%clk 0:00:07]} 58. Kd4 {[%clk 0:00:24]}  Rxg2 {[%clk 0:00:07]} 59. Kc4 {[%clk 0:00:24]}  Rxg4+ {[%clk 0:00:07]} 60. Kb5 {[%clk 0:00:25]}  Rg1 {[%clk 0:00:07]} 61. Kc6 {[%clk 0:00:25]}  Rd1 {[%clk 0:00:06]} 62. d6+ {[%clk 0:00:26]}  Kd8 {[%clk 0:00:06]} 63. Kb7 {[%clk 0:00:26]}  Kd7 {[%clk 0:00:03]} 64. Kb6 {[%clk 0:00:25]}  Rxd6+ {[%clk 0:00:03]} 65. cxd6 {[%clk 0:00:25]}  Kxd6 {[%clk 0:00:04]} 66. Kb5 {[%clk 0:00:25]}  Ke5 {[%clk 0:00:04]} 67. Kc4 {[%clk 0:00:26]}  g5 {[%clk 0:00:05]} 68. Kd3 {[%clk 0:00:26]}  f5 {[%clk 0:00:06]} 69. Ke2 {[%clk 0:00:27]}  g4 {[%clk 0:00:07]} 70. Kf1 {[%clk 0:00:28]}  Kf4 {[%clk 0:00:07]} 71. Kf2 {[%clk 0:00:29]}  g3+ {[%clk 0:00:08]} 72. Kg2 {[%clk 0:00:30]}  Kg4 {[%clk 0:00:09]} 73. Kg1 {[%clk 0:00:31]}  f4 {[%clk 0:00:09]} 74. Kg2 {[%clk 0:00:32]}  f3+ {[%clk 0:00:10]} 75. Kg1 {[%clk 0:00:33]}  Kh3 {[%clk 0:00:11]} 76. Kh1 {[%clk 0:00:33]}  Kg4 {[%clk 0:00:10]} 77. Kg1 {[%clk 0:00:34]}  Kf4 {[%clk 0:00:11]} 78. Kf1 {[%clk 0:00:34]}  Ke3 {[%clk 0:00:11]} 79. Kg1 {[%clk 0:00:35]}  Ke2 {[%clk 0:00:11]} 80. Kh1 {[%clk 0:00:36]}  g2+ {[%clk 0:00:11]} 0-1


[Site "https://www.chess.com"]

[Event "Titled Tuesday Blitz November 29 Early 2022"]
[White "Santos Ruiz, Miguel"]
[Black "Maksimovic, Bojan"]
[WhiteFideId "22291482"]
[BlackFideId "14408120"]
[WhiteElo "2503"]
[BlackElo "2447"]
[Result "0-1"]
[Round "11"]
[TimeControl "180+1"]
[Date "2022.11.29"]
[WhiteClock "0:00:18"]
[BlackClock "0:00:30"]

1. e4 {[%clk 0:03:00]}  c5 {[%clk 0:02:59]} 2. Nf3 {[%clk 0:03:00]}  e6 {[%clk 0:02:59]} 3. d4 {[%clk 0:03:00]}  cxd4 {[%clk 0:03:00]} 4. Nxd4 {[%clk 0:03:01]}  a6 {[%clk 0:03:00]} 5. c4 {[%clk 0:03:00]}  Nf6 {[%clk 0:03:00]} 6. Nc3 {[%clk 0:03:01]}  Qc7 {[%clk 0:03:00]} 7. a3 {[%clk 0:03:00]}  b6 {[%clk 0:03:00]} 8. Be3 {[%clk 0:03:00]}  Bb7 {[%clk 0:03:00]} 9. f3 {[%clk 0:03:01]}  Be7 {[%clk 0:03:00]} 10. Qd2 {[%clk 0:03:00]}  d6 {[%clk 0:03:00]} 11. Be2 {[%clk 0:03:01]}  Nbd7 {[%clk 0:03:00]} 12. Rc1 {[%clk 0:03:01]}  O-O {[%clk 0:03:00]} 13. g4 {[%clk 0:03:00]}  Ne5 {[%clk 0:01:54]} 14. g5 {[%clk 0:03:00]}  Nfd7 {[%clk 0:01:54]} 15. f4 {[%clk 0:03:01]}  Nc6 {[%clk 0:01:53]} 16. Nd5 {[%clk 0:02:30]}  Qd8 {[%clk 0:01:53]} 17. Nxe7+ {[%clk 0:02:13]}  Qxe7 {[%clk 0:01:54]} 18. Nxc6 {[%clk 0:02:09]}  Bxc6 {[%clk 0:01:55]} 19. Bf3 {[%clk 0:02:02]}  Nc5 {[%clk 0:01:51]} 20. Qc2 {[%clk 0:01:49]}  a5 {[%clk 0:01:44]} 21. b4 {[%clk 0:01:45]}  axb4 {[%clk 0:01:44]} 22. axb4 {[%clk 0:01:46]}  Ra3 {[%clk 0:01:45]} 23. Kf2 {[%clk 0:01:44]}  Nd3+ {[%clk 0:01:43]} 24. Ke2 {[%clk 0:01:44]}  Nxc1+ {[%clk 0:01:29]} 25. Bxc1 {[%clk 0:01:43]}  Rxf3 {[%clk 0:01:18]} 26. Kxf3 {[%clk 0:01:44]}  f5 {[%clk 0:01:18]} 27. gxf6 {[%clk 0:01:41]}  Qxf6 {[%clk 0:01:19]} 28. Re1 {[%clk 0:01:27]}  e5 {[%clk 0:01:17]} 29. b5 {[%clk 0:00:58]}  Bb7 {[%clk 0:01:18]} 30. Qa2 {[%clk 0:00:48]}  Qf7 {[%clk 0:01:05]} 31. Qd2 {[%clk 0:00:42]}  Qh5+ {[%clk 0:00:47]} 32. Ke3 {[%clk 0:00:25]}  Qh3+ {[%clk 0:00:41]} 33. Ke2 {[%clk 0:00:22]}  Bxe4 {[%clk 0:00:34]} 34. Qxd6 {[%clk 0:00:20]}  Qxh2+ {[%clk 0:00:30]} 35. Ke3 {[%clk 0:00:17]}  Qxf4+ {[%clk 0:00:30]} 36. Ke2 {[%clk 0:00:18]}  Qf2+ {[%clk 0:00:30]} 37. Kd1 {[%clk 0:00:18]}  Qc2# {[%clk 0:00:30]} 0-1


[Site "https://www.chess.com"]

[Event "Titled Tuesday Blitz November 29 Early 2022"]
[White "Seletsky, Grigory"]
[Black "Flis, Pawel"]
[WhiteFideId "14112191"]
[BlackFideId "1112864"]
[WhiteElo "2492"]
[BlackElo "1817"]
[Result "1/2-1/2"]
[Round "11"]
[TimeControl "180+1"]
[Date "2022.11.30"]
[WhiteClock "0:00:52"]
[BlackClock "0:00:10"]

1. e4 {[%clk 0:02:58]}  c5 {[%clk 0:02:59]} 2. Nf3 {[%clk 0:02:56]}  d6 {[%clk 0:02:59]} 3. c3 {[%clk 0:02:55]}  Nf6 {[%clk 0:02:59]} 4. Bd3 {[%clk 0:02:53]}  Nbd7 {[%clk 0:02:59]} 5. Bc2 {[%clk 0:02:53]}  g6 {[%clk 0:02:59]} 6. O-O {[%clk 0:02:53]}  Bg7 {[%clk 0:02:59]} 7. Re1 {[%clk 0:02:52]}  O-O {[%clk 0:02:59]} 8. d4 {[%clk 0:02:52]}  e5 {[%clk 0:02:56]} 9. d5 {[%clk 0:02:51]}  Nh5 {[%clk 0:02:49]} 10. a4 {[%clk 0:02:51]}  Nf4 {[%clk 0:02:40]} 11. Bxf4 {[%clk 0:02:46]}  exf4 {[%clk 0:02:41]} 12. Nbd2 {[%clk 0:02:46]}  Ne5 {[%clk 0:02:39]} 13. h3 {[%clk 0:02:39]}  Bd7 {[%clk 0:02:32]} 14. Nxe5 {[%clk 0:02:39]}  Bxe5 {[%clk 0:02:27]} 15. Nc4 {[%clk 0:02:39]}  Qh4 {[%clk 0:02:20]} 16. Qf3 {[%clk 0:02:36]}  f5 {[%clk 0:02:17]} 17. exf5 {[%clk 0:02:34]}  Bxf5 {[%clk 0:02:16]} 18. Bxf5 {[%clk 0:02:33]}  Rxf5 {[%clk 0:02:17]} 19. Nxe5 {[%clk 0:02:28]}  dxe5 {[%clk 0:02:12]} 20. d6 {[%clk 0:02:27]}  Rd8 {[%clk 0:01:52]} 21. Rac1 {[%clk 0:02:25]}  Rxd6 {[%clk 0:01:43]} 22. Rcd1 {[%clk 0:02:25]}  Rxd1 {[%clk 0:01:19]} 23. Rxd1 {[%clk 0:02:25]}  Qe7 {[%clk 0:01:08]} 24. Qd5+ {[%clk 0:02:13]}  Kg7 {[%clk 0:01:04]} 25. f3 {[%clk 0:02:11]}  Rf6 {[%clk 0:00:51]} 26. Re1 {[%clk 0:02:07]}  Re6 {[%clk 0:00:50]} 27. Re4 {[%clk 0:02:06]}  Kf6 {[%clk 0:00:49]} 28. b4 {[%clk 0:02:04]}  b6 {[%clk 0:00:43]} 29. bxc5 {[%clk 0:01:57]}  Qxc5+ {[%clk 0:00:43]} 30. Qxc5 {[%clk 0:01:56]}  bxc5 {[%clk 0:00:44]} 31. Kf2 {[%clk 0:01:52]}  Rb6 {[%clk 0:00:37]} 32. Rc4 {[%clk 0:01:50]}  Rc6 {[%clk 0:00:34]} 33. Ke2 {[%clk 0:01:49]}  Ke6 {[%clk 0:00:33]} 34. Kd3 {[%clk 0:01:49]}  Kd5 {[%clk 0:00:33]} 35. a5 {[%clk 0:01:45]}  Rc7 {[%clk 0:00:31]} 36. Ra4 {[%clk 0:01:39]}  Rb7 {[%clk 0:00:30]} 37. Ra2 {[%clk 0:01:34]}  c4+ {[%clk 0:00:25]} 38. Kc2 {[%clk 0:01:34]}  e4 {[%clk 0:00:19]} 39. fxe4+ {[%clk 0:01:33]}  Kxe4 {[%clk 0:00:19]} 40. Ra4 {[%clk 0:01:32]}  Rc7 {[%clk 0:00:19]} 41. a6 {[%clk 0:01:27]}  g5 {[%clk 0:00:18]} 42. Rb4 {[%clk 0:01:27]}  h5 {[%clk 0:00:18]} 43. Rb7 {[%clk 0:01:27]}  Rc5 {[%clk 0:00:14]} 44. Rxa7 {[%clk 0:01:24]}  Ra5 {[%clk 0:00:14]} 45. Rf7 {[%clk 0:01:17]}  g4 {[%clk 0:00:13]} 46. hxg4 {[%clk 0:01:15]}  hxg4 {[%clk 0:00:13]} 47. a7 {[%clk 0:01:10]}  f3 {[%clk 0:00:13]} 48. gxf3+ {[%clk 0:01:10]}  gxf3 {[%clk 0:00:13]} 49. Kd2 {[%clk 0:01:07]}  Ra2+ {[%clk 0:00:12]} 50. Ke1 {[%clk 0:01:06]}  Ke3 {[%clk 0:00:12]} 51. Re7+ {[%clk 0:01:04]}  Kd3 {[%clk 0:00:12]} 52. Rf7 {[%clk 0:01:03]}  Ke3 {[%clk 0:00:12]} 53. Re7+ {[%clk 0:00:54]}  Kd3 {[%clk 0:00:12]} 54. Rf7 {[%clk 0:00:52]}  Ke3 {[%clk 0:00:10]} 1/2-1/2


[Site "https://www.chess.com"]

[Event "Titled Tuesday Blitz November 29 Early 2022"]
[White "Simonovic, Miroslav"]
[Black "Fernandez Hernandez, Gerardo"]
[WhiteFideId "919152"]
[BlackFideId "2207400"]
[WhiteElo "2043"]
[BlackElo "2201"]
[Result "1-0"]
[Round "11"]
[TimeControl "180+1"]
[Date "2022.11.30"]
[WhiteClock "0:00:07"]
[BlackClock "0:00:05"]

1. d4 {[%clk 0:03:00]}  Nf6 {[%clk 0:02:56]} 2. Bg5 {[%clk 0:03:01]}  Ne4 {[%clk 0:02:54]} 3. h4 {[%clk 0:03:01]}  h6 {[%clk 0:02:51]} 4. Bf4 {[%clk 0:03:00]}  d5 {[%clk 0:02:49]} 5. Nd2 {[%clk 0:03:00]}  Nxd2 {[%clk 0:02:46]} 6. Qxd2 {[%clk 0:03:01]}  Bf5 {[%clk 0:02:46]} 7. e3 {[%clk 0:03:01]}  e6 {[%clk 0:02:45]} 8. Bd3 {[%clk 0:03:01]}  Bxd3 {[%clk 0:02:45]} 9. Qxd3 {[%clk 0:03:02]}  Bd6 {[%clk 0:02:45]} 10. Qb5+ {[%clk 0:03:01]}  Nd7 {[%clk 0:02:33]} 11. Bxd6 {[%clk 0:02:58]}  cxd6 {[%clk 0:02:33]} 12. Qxb7 {[%clk 0:02:57]}  Qa5+ {[%clk 0:02:27]} 13. b4 {[%clk 0:02:34]}  Qd8 {[%clk 0:02:27]} 14. a3 {[%clk 0:02:17]}  O-O {[%clk 0:02:26]} 15. Nf3 {[%clk 0:02:13]}  Nb6 {[%clk 0:02:25]} 16. O-O {[%clk 0:02:10]}  Re8 {[%clk 0:02:21]} 17. g3 {[%clk 0:02:08]}  Re7 {[%clk 0:02:20]} 18. Qa6 {[%clk 0:02:08]}  Rc7 {[%clk 0:02:17]} 19. Rfc1 {[%clk 0:02:00]}  Rc3 {[%clk 0:02:14]} 20. Nd2 {[%clk 0:01:30]}  Qc7 {[%clk 0:02:04]} 21. Ra2 {[%clk 0:01:23]}  Rc8 {[%clk 0:01:52]} 22. Kg2 {[%clk 0:01:05]}  Qd7 {[%clk 0:01:25]} 23. Nb1 {[%clk 0:01:02]}  R3c6 {[%clk 0:01:21]} 24. Qd3 {[%clk 0:01:01]}  Na4 {[%clk 0:01:10]} 25. c3 {[%clk 0:00:55]}  Qc7 {[%clk 0:00:59]} 26. Rac2 {[%clk 0:00:54]}  Nb6 {[%clk 0:00:51]} 27. Nd2 {[%clk 0:00:49]}  Qb7 {[%clk 0:00:49]} 28. Kg1 {[%clk 0:00:46]}  Qe7 {[%clk 0:00:39]} 29. e4 {[%clk 0:00:21]}  Qc7 {[%clk 0:00:32]} 30. exd5 {[%clk 0:00:20]}  exd5 {[%clk 0:00:29]} 31. Qf3 {[%clk 0:00:17]}  Kf8 {[%clk 0:00:17]} 32. Nb3 {[%clk 0:00:14]}  Qd7 {[%clk 0:00:09]} 33. Na5 {[%clk 0:00:13]}  R6c7 {[%clk 0:00:09]} 34. Qd3 {[%clk 0:00:10]}  Qa4 {[%clk 0:00:09]} 35. Qh7 {[%clk 0:00:09]}  Qxa3 {[%clk 0:00:06]} 36. Qh8+ {[%clk 0:00:09]}  Ke7 {[%clk 0:00:06]} 37. Qxg7 {[%clk 0:00:08]}  Rxc3 {[%clk 0:00:05]} 38. Re1+ {[%clk 0:00:08]}  Kd7 {[%clk 0:00:05]} 39. Qxf7+ {[%clk 0:00:07]}  Kd8 {[%clk 0:00:05]} 40. Re8# {[%clk 0:00:07]} 1-0


[Site "https://www.chess.com"]